{"text_format":"1","workbook":"xlsx","n_sheets":1,"sheets":["CONSULTING PAY APPLICATION"],"not_rendered":{"charts":0,"images":1,"macros":1,"external_links":0,"defined_names":1,"comments":2,"pivot_tables":0},"unopened":[],"bounds":{"document_bytes":16777216,"sheet_cells":100000,"rows_first":2000,"rows_last":500,"rows_between":2000,"halvings":0,"cell_chars":16384,"cell_head_chars":4096},"cells_cut":0,"cells_raw":0,"read":"whole","date_system":"1900"}

{"sheet":"CONSULTING PAY APPLICATION","index":0,"n_rows":73,"n_cols":18,"rows_kept":73,"cut":false,"hidden":false,"merged":[[14,4,14,14],[20,15,20,16],[22,15,22,16],[20,17,20,18],[18,14,18,16],[18,17,18,18],[22,17,22,18],[32,16,32,19],[32,9,32,12],[14,17,14,18],[16,4,16,14],[20,4,20,13],[22,4,22,13],[25,2,26,8],[25,9,26,12],[25,13,26,15],[25,16,26,19],[14,2,14,3],[16,2,16,3],[20,2,20,3],[22,2,22,3],[32,3,32,8],[14,15,14,16],[31,16,31,19],[29,9,29,12],[27,13,27,15],[28,13,28,15],[27,16,27,19],[29,16,29,19],[27,9,27,12],[28,9,28,12],[30,16,30,19],[29,13,29,15],[30,9,30,12],[30,13,30,15],[28,16,28,19],[33,9,33,12],[33,13,33,15],[27,3,27,8],[31,9,31,12],[31,13,31,15],[30,3,30,8],[31,3,31,8],[28,3,28,8],[29,3,29,8],[32,13,32,15],[34,2,34,8],[34,9,34,12],[45,13,45,15],[43,3,43,8],[43,9,43,12],[36,3,36,8],[37,3,37,8],[38,3,38,8],[33,16,33,19],[47,6,47,8],[34,16,34,19],[37,16,37,19],[38,16,38,19],[39,16,39,19],[38,13,38,15],[38,9,38,12],[35,16,35,19],[37,13,37,15],[36,16,36,19],[36,13,36,15],[36,9,36,12],[37,9,37,12],[33,3,33,8],[35,2,35,8],[62,17,62,19],[48,16,48,19],[49,16,49,19],[51,16,51,19],[40,16,40,19],[43,16,43,19],[44,16,44,19],[45,16,45,19],[46,16,46,19],[41,16,41,19],[66,11,66,15],[39,9,39,12],[39,6,39,8],[44,9,44,12],[45,3,45,8],[40,2,40,8],[42,2,42,8],[62,4,62,9],[62,11,62,15],[43,13,43,15],[44,3,44,8],[45,9,45,12],[46,6,46,8],[44,13,44,15],[46,9,46,12],[47,9,47,12]]}
[]
[]
[]
[]
[]
[]
[]
[]
[]
[]
[]
[]
[]
[]
[null,null,"Project Name:",null,null,null,null,null,null,null,null,null,null,null,null,"PPA No.:"]
[]
[null,null,"Location:"]
[]
[null,null,null,null,null,null,null,null,null,null,null,null,null,null,"Pay Request No.:"]
[]
[null,null,"Architect / Engineer:",null,null,null,null,null,null,null,null,null,null,null,null,"Date:"]
[]
[null,null,"Address:",null,null,null,null,null,null,null,null,null,null,null,null,"Phone:"]
[]
[]
[null,null,"BASIC SERVICES",null,null,null,null,null,null,"CONTRACT     AMOUNT",null,null,null,"PERCENTAGE COMPLETED",null,null,"AMOUNT EARNED"]
[]
[null,null,1,"Schematic Design Phase",null,null,null,null,null,null,null,null,null,{"$f":"Q28/J28","v":{"$error":"#DIV/0!"}}]
[null,null,2,"Design Development Phase",null,null,null,null,null,null,null,null,null,{"$f":"Q29/J29","v":{"$error":"#DIV/0!"}}]
[null,null,3,"Construction Documents Phase",null,null,null,null,null,null,null,null,null,{"$error":"#DIV/0!"}]
[null,null,4,"Bidding Phase",null,null,null,null,null,null,null,null,null,{"$error":"#DIV/0!"}]
[null,null,5,"Construction Administration",null,null,null,null,null,null,null,null,null,{"$error":"#DIV/0!"}]
[null,null,6,"Record Documents",null,null,null,null,null,null,null,null,null,{"$error":"#DIV/0!"}]
[null,null,7,"Warranty Inspection",null,null,null,null,null,null,null,null,null,{"$error":"#DIV/0!"}]
[null,null,"Basic Svcs Sub Total",null,null,null,null,null,null,{"$f":"SUM(J28:M34)","v":0}]
[null,null,"ADDITIONAL SERVICES",null,null,null,null,null,null,null,null,null,null,null,null,"Sub Total Commisioning Svcs:",{"$f":"SUM(Q28:T34)","v":0}]
[null,null,1,null,null,null,null,null,null,null,null,null,null,{"$f":"Q37/J37","v":{"$error":"#DIV/0!"}}]
[null,null,2,null,null,null,null,null,null,null,null,null,null,{"$error":"#DIV/0!"}]
[null,null,3,null,null,null,null,null,null,null,null,null,null,{"$error":"#DIV/0!"}]
[null,null,null,null,null,null,"Additional Svcs Sub Total",null,null,{"$f":"SUM(J37:M39)","v":0}]
[null,null,null,null,null,null,null,null,null,null,null,null,null,"Sub Total Additional Svcs:",null,null,{"$f":"SUM(Q37:Q40)","v":0}]
[null,null,null,null,null,null,null,null,null,null,null,null,null,null,null,"Fee Earned (Basic + Additional Services):",{"$f":"SUM(Q36+Q41)","v":0}]
[null,null,"ADDENDUM SUMMARY"]
[null,null,1,null,null,null,null,null,null,null,null,null,null,{"$f":"Q44/J44","v":{"$error":"#DIV/0!"}}]
[null,null,2,null,null,null,null,null,null,null,null,null,null,{"$error":"#DIV/0!"}]
[null,null,3,null,null,null,null,null,null,null,null,null,null,{"$error":"#DIV/0!"}]
[null,null,null,"Only Executed Addendums to enter",null,null,"Addendum Sub Total",null,null,{"$f":"SUM(J44:M46)","v":0},null,null,null,"Sub Total Addendum:",null,null,{"$f":"SUM(Q44:Q46)","v":0}]
[null,null,null,null,null,null,"Total Agreement ",null,null,{"$f":"SUM(J35+J40+J47)","v":0}]
[null,null,null,null,null,null,null,null,null,null,null,null,null,null,null,"TOTAL FEE EARNED TO DATE:",{"$f":"SUM(Q42+Q47)","v":0}]
[null,null,null,null,null,null,null,null,null,null,null,null,null,null,null,"LESS PREVIOUS PAYMENTS:"]
[]
[null,null,null,null,null,null,null,null,null,null,null,null,null,null,null,"AMOUNT DUE THIS REQUEST FOR PAYMENT:",{"$f":"IF(Q49-Q50<0,0,Q49-Q50)","v":0}]
[]
[]
[]
[]
[]
[]
[]
[]
[]
[]
[null,null,null,"Submitted By:"]
[null,null,null,null,"(Firm Name)",null,null,null,null,null,null,"(Architect / Engineer Signature)",null,null,null,null,null,"(Date)"]
[]
[]
[null,null,null,null,"Montana State University",null,null,null,null,null,null,"(Project Manager)",null,null,null,null,null,"(Date)"]
[null,null,null,"Approved By:","University Facilities Management"]
[null,null,null,null,"(Owner)"]
[null,null,null,null,null,null,null,null,null,null,null,null,null,null,null,null,null,"(Date)"]
[]
[]
[null,null,null,"MSU Architect/Engineer Request for Payment, Form 108"]